bitfinex-derivatives/quotes_BTCF0:USTF0_20251023
["timestamp","ask_amount","ask_price","bid_price","bid_amount"]
[1761251960787,0.1349846,110010.0,110000.0,0.1425662]
[1761251960978,0.1349846,110010.0,110000.0,1.14984922]
[1761251962080,0.1349846,110010.0,110000.0,1.15084922]
[1761251962284,0.1723017,110020.0,110010.0,0.1342779]
[1761251962484,0.31162401,110020.0,110010.0,0.29787941]
[1761251963983,0.1480225,110020.0,110010.0,0.29787941]
[1761251964383,0.1490225,110020.0,110010.0,0.29787941]
[1761251966791,0.1490225,110020.0,110010.0,0.65867941]
[1761251966989,0.31262401,110020.0,110010.0,0.65867941]
[1761251967890,0.31262401,110020.0,110010.0,0.3608]
[1761251968098,0.47622552,110020.0,110010.0,0.04611]
[1761251968296,0.86130472,110020.0,110010.0,0.04611]
[1761251969181,0.89374491,110020.0,110010.0,0.04611]
[1761251969994,0.86946571,110020.0,110010.0,0.04611]
[1761251973499,0.91818268,110020.0,110010.0,0.04611]
[1761251979301,0.1041062,110000.0,109990.0,0.40691]
[1761251979497,0.33548981,110000.0,109990.0,0.04611]
[1761251979691,0.33548981,110000.0,109990.0,0.20971151]
[1761251980394,0.33548981,110000.0,109990.0,0.21071151]
[1761251981504,0.33548981,110000.0,109990.0,0.21171151]
[1761251982703,0.85989132,110000.0,109990.0,0.002]
[1761251982902,0.8923325,110000.0,109990.0,0.002]
[1761251983204,1.18731941,110000.0,109990.0,0.002]
[1761251983408,1.04804972,110000.0,109990.0,0.04811]
[1761251985095,0.72872972,110000.0,109990.0,0.002]
[1761251985392,0.88427619,110000.0,109990.0,0.002]
[1761251985900,0.89332432,110000.0,109990.0,0.002]
[1761251986404,0.92574748,110000.0,109990.0,0.002]
[1761251986702,0.92574748,110000.0,109990.0,0.02486]
[1761251986703,0.91669935,110000.0,109990.0,0.02486]
[1761251986899,0.58949633,110000.0,109990.0,0.02486]
[1761251987094,0.58949633,110000.0,109990.0,0.21171151]
[1761251987095,0.88469621,110000.0,109990.0,0.21171151]
[1761251987290,1.04829772,110000.0,109990.0,0.21171151]
[1761251988004,1.04829772,110000.0,109990.0,0.04811]
[1761251988495,1.18758238,110000.0,109990.0,0.002]
[1761251989001,0.86798238,110000.0,109990.0,0.002]
[1761251989301,1.18758238,110000.0,109990.0,0.002]
[1761251989891,1.18758238,110000.0,109990.0,0.02486]
[1761251990094,1.18758238,110000.0,109990.0,0.002]
[1761251990290,0.1475644,109990.0,109980.0,0.00454607]
[1761251990496,0.69626816,109990.0,109980.0,0.00454607]
[1761251991102,0.72869132,109990.0,109980.0,0.00454607]
[1761251991302,0.69626816,109990.0,109980.0,0.00454607]
[1761251991505,0.72869132,109990.0,109980.0,0.00554607]
[1761251991895,0.72869132,109990.0,109980.0,0.00754607]
[1761251992407,1.25986967,109990.0,109980.0,0.00754607]
[1761251992704,1.12088549,109990.0,109980.0,0.01492621]
[1761251993510,1.12088549,109990.0,109980.0,0.00654607]
[1761251993810,1.12088549,109990.0,109980.0,0.00754607]
[1761251994409,0.1486527,109980.0,109970.0,6.837e-05]
[1761251994709,0.1486775,109950.0,109940.0,0.50082313]
[1761251994910,0.1486775,109950.0,109940.0,0.40988773]
[1761251995701,0.14875649,109950.0,109940.0,0.40988773]
[1761251996199,0.14875649,109950.0,109940.0,0.05308773]
[1761251996200,0.67336061,109950.0,109940.0,0.05308773]
[1761251996399,0.50955649,109950.0,109940.0,0.06045478]
[1761251996596,0.50955649,109950.0,109940.0,0.05945478]
[1761251997412,0.83015649,109950.0,109940.0,0.05945478]
[1761251997909,0.50955649,109950.0,109940.0,0.01491478]
[1761251998203,0.50955649,109950.0,109940.0,0.01191478]
[1761251998204,0.69964939,109950.0,109940.0,0.01191478]
[1761251998604,1.09964939,109950.0,109940.0,0.01191478]
[1761251998804,1.13203668,109950.0,109940.0,0.01191478]
[1761251999302,1.09964939,109950.0,109940.0,0.01191478]
[1761251999702,1.68106899,109950.0,109940.0,4.78e-06]
[1761252000114,1.6579792,109950.0,109940.0,4.78e-06]
[1761252000613,0.1487023,109920.0,109910.0,0.00907598]
[1761252000802,0.1487023,109920.0,109900.0,0.40988938]
[1761252000803,0.1487106,109910.0,109900.0,0.40988938]
[1761252001004,0.31251472,109910.0,109900.0,0.36534938]
[1761252001205,0.31251472,109910.0,109900.0,0.40988938]
[1761252001405,0.67331472,109910.0,109900.0,0.00454938]
[1761252001704,0.41855,109910.0,109900.0,0.04908938]
[1761252001900,0.02239,109910.0,109900.0,0.6781024]
[1761252002102,0.05775,109920.0,109910.0,0.0909606]
[1761252002315,0.1487023,109920.0,109910.0,0.38401]
[1761252002610,0.1487023,109920.0,109910.0,0.40634]
[1761252002814,0.1487023,109920.0,109910.0,0.4963006]
[1761252003013,0.05775,109920.0,109910.0,0.66010472]
[1761252003311,0.05775,109920.0,109910.0,0.4963006]
[1761252003813,0.4702176,109930.0,109920.0,0.1354923]
[1761252004008,0.1486976,109930.0,109920.0,0.04454]
[1761252005006,0.31350172,109930.0,109920.0,0.04454]
[1761252008017,0.31358071,109930.0,109920.0,0.04454]
[1761252008320,0.14977659,109930.0,109920.0,0.1354923]
[1761252008617,0.14977659,109930.0,109920.0,0.1489323]
[1761252008821,0.14977659,109930.0,109920.0,0.1354923]
[1761252009219,0.14977659,109930.0,109920.0,0.4962923]
[1761252009821,0.14977309,109930.0,109920.0,0.4962923]
[1761252011123,0.14877309,109930.0,109920.0,0.4972923]
[1761252011823,0.14977309,109930.0,109920.0,0.4972923]
[1761252012124,0.14977309,109930.0,109920.0,0.72782]
[1761252012614,0.14977309,109930.0,109920.0,0.8177723]
[1761252014926,0.14977309,109930.0,109920.0,0.72682]
[1761252017031,0.14977309,109930.0,109920.0,0.8177723]
[1761252017430,0.14977309,109930.0,109920.0,0.81881768]
[1761252019018,0.31357721,109930.0,109920.0,0.72786538]
[1761252019223,0.31357721,109930.0,109920.0,0.32252538]
[1761252019828,0.31357721,109930.0,109920.0,0.00104538]
[1761252020028,0.33779493,109930.0,109920.0,0.00104538]
[1761252020634,0.33779493,109930.0,109920.0,0.02325538]
[1761252021633,0.33779493,109930.0,109920.0,0.00104538]
[1761252022335,0.37008522,109930.0,109920.0,0.00104538]
[1761252023333,0.3458675,109930.0,109920.0,0.00104538]
[1761252023534,0.3458675,109930.0,109920.0,0.02325538]
[1761252023829,0.7458675,109930.0,109920.0,0.00104538]
[1761252024035,1.1066675,109930.0,109920.0,0.00104538]
[1761252024535,1.13920764,109930.0,109920.0,0.00104538]
[1761252025037,0.1497006,109910.0,109900.0,0.68658938]
[1761252025222,0.39466544,109910.0,109900.0,0.68658938]
[1761252025736,0.39466544,109910.0,109900.0,0.73235938]
[1761252026237,0.39466544,109910.0,109900.0,0.73335938]
[1761252030448,0.36223141,109910.0,109900.0,0.00554938]
[1761252031441,0.72303141,109910.0,109900.0,0.01294836]
[1761252031832,0.72303141,109910.0,109900.0,0.05747836]
[1761252032037,1.04479141,109910.0,109900.0,0.05747836]
[1761252032239,0.88098729,109910.0,109900.0,0.05747836]
[1761252032537,1.04479141,109910.0,109900.0,0.05007938]
[1761252034749,0.91332469,109910.0,109900.0,0.05007938]
[1761252035848,1.07712881,109910.0,109900.0,0.05007938]
[1761252036242,1.02847776,109910.0,109900.0,0.05007938]
[1761252036438,1.07712881,109910.0,109900.0,0.05007938]
[1761252036646,1.07708881,109910.0,109900.0,0.05007938]
[1761252037149,1.02843776,109910.0,109900.0,0.05007938]
[1761252037547,1.07708881,109910.0,109900.0,0.05007938]
[1761252038144,1.02843776,109910.0,109900.0,0.05007938]
[1761252038447,1.07708881,109910.0,109900.0,0.05007938]
[1761252038655,0.75544881,109910.0,109900.0,0.05007938]
[1761252040049,0.72303141,109910.0,109900.0,0.05007938]
[1761252043143,0.72303141,109910.0,109900.0,0.3147724]
[1761252043144,0.23082969,109910.0,109900.0,0.3147724]
[1761252043450,0.20648335,109910.0,109900.0,0.6364524]
[1761252043955,0.17408095,109910.0,109900.0,0.6364524]
[1761252044342,0.17408095,109910.0,109900.0,0.9972524]
[1761252044343,0.07026035,109910.0,109900.0,0.9972524]
[1761252044547,0.04711035,109910.0,109900.0,1.3972524]
[1761252044853,7.564e-05,109910.0,109900.0,1.3972524]
[1761252045445,0.14834624,109910.0,109900.0,0.81087938]
[1761252045647,0.17265095,109910.0,109900.0,0.05007938]
[1761252046845,0.33645507,109910.0,109900.0,0.05007938]
[1761252050856,0.33645507,109910.0,109900.0,0.00554938]
[1761252051055,0.33645507,109910.0,109900.0,0.02709938]
[1761252051450,0.69725507,109910.0,109900.0,0.02709938]
[1761252052251,1.01885507,109910.0,109900.0,0.00554938]
[1761252052553,0.17265095,109910.0,109900.0,0.5874635]
[1761252052758,0.17265095,109910.0,109900.0,0.67858542]
[1761252053258,0.33660809,109910.0,109900.0,0.67858542]
[1761252053659,0.17265095,109910.0,109900.0,0.67858542]
[1761252060256,0.15953095,109910.0,109900.0,0.84254256]
[1761252061268,0.09103624,109910.0,109900.0,0.84254256]
[1761252061655,0.09103624,109910.0,109900.0,1.24254256]
[1761252063049,7.564e-05,109910.0,109900.0,1.24254256]
[1761252063254,7.564e-05,109910.0,109900.0,1.27523275]
[1761252065165,0.11314624,109910.0,109900.0,1.24254256]
[1761252065364,0.14840624,109910.0,109900.0,0.66580542]
[1761252066565,0.14840624,109910.0,109900.0,0.67858542]
[1761252067262,0.13453624,109910.0,109900.0,0.67858542]
[1761252068267,0.13453624,109910.0,109900.0,0.84254256]
[1761252068464,0.31236338,109910.0,109900.0,0.41087938]
[1761252068659,0.89382763,109910.0,109900.0,0.00554938]
[1761252068861,0.91817397,109910.0,109900.0,0.00554938]
[1761252069170,0.88577157,109910.0,109900.0,0.00554938]
[1761252071159,0.1483637,109870.0,109860.0,0.69689037]
[1761252071463,0.1483637,109870.0,109860.0,0.58663818]
[1761252072261,0.14847518,109870.0,109860.0,0.58663818]
[1761252072456,0.31243232,109870.0,109860.0,0.58663818]
[1761252072662,0.14847518,109870.0,109860.0,0.57319818]
[1761252072861,0.31243232,109870.0,109860.0,0.57319818]
[1761252073057,0.31243232,109870.0,109860.0,0.05044104]
[1761252073264,0.69756726,109870.0,109860.0,0.05244104]
[1761252074561,0.69756726,109870.0,109860.0,0.21639818]
[1761252075170,0.67323232,109870.0,109860.0,0.21639818]
[1761252075469,0.50927518,109870.0,109860.0,0.21639818]
[1761252075669,0.67323232,109870.0,109860.0,0.21639818]
[1761252076169,0.67323232,109870.0,109860.0,0.00855104]
[1761252076364,0.67323232,109870.0,109860.0,0.03143104]
[1761252076963,0.67323232,109870.0,109860.0,0.05244104]
[1761252077174,0.67323232,109870.0,109860.0,0.21639818]
[1761252078070,0.67323232,109870.0,109860.0,0.05244104]
[1761252082582,0.67323232,109870.0,109860.0,0.00855104]
[1761252083376,0.67323232,109870.0,109860.0,0.03143104]
[1761252083679,0.67323232,109870.0,109860.0,0.05458104]
[1761252083973,0.50927518,109870.0,109860.0,0.05458104]
[1761252084176,0.13460518,109870.0,109860.0,0.68378018]
[1761252084576,0.13460518,109870.0,109860.0,1.24773732]
[1761252084781,0.02222148,109870.0,109860.0,1.24773732]
[1761252085573,0.11321518,109870.0,109860.0,1.24773732]
[1761252086367,0.00011148,109870.0,109860.0,1.24773732]
[1761252086571,0.09110518,109870.0,109860.0,1.24773732]
[1761252089586,0.00011148,109870.0,109860.0,1.24773732]
[1761252090087,0.149253,109890.0,109880.0,0.1447954]
[1761252090383,0.135383,109890.0,109880.0,1.15582968]
[1761252090582,0.135383,109890.0,109880.0,0.99187254]
[1761252091083,0.13543174,109890.0,109880.0,0.99187254]
[1761252091285,0.13543174,109890.0,109880.0,0.99287254]
[1761252104296,0.09102584,109890.0,109880.0,1.55682968]
[1761252104897,4.874e-05,109890.0,109880.0,1.55682968]
[1761252105094,0.09102584,109890.0,109880.0,1.55682968]
[1761252107002,4.874e-05,109890.0,109880.0,1.55682968]
[1761252107604,0.09102594,109890.0,109880.0,1.55682968]
[1761252112707,0.09102594,109890.0,109880.0,1.39290254]
[1761252114204,4.874e-05,109890.0,109880.0,1.39290254]
[1761252114421,0.07920743,109920.0,109910.0,0.1492806]
[1761252114601,0.1484381,109930.0,109920.0,0.04554]
[1761252114805,0.1484381,109930.0,109920.0,0.66127944]
[1761252115316,0.1484381,109930.0,109920.0,0.67119944]
[1761252116814,0.1484381,109930.0,109920.0,0.68010047]
[1761252117108,0.1514381,109930.0,109920.0,0.68010047]
[1761252117310,0.06049,109930.0,109920.0,0.68010047]
[1761252117611,0.04705,109930.0,109920.0,0.68010047]
[1761252117807,0.59169703,109950.0,109940.0,0.0909358]
[1761252117808,0.23433878,109950.0,109940.0,0.0909358]
[1761252118007,0.50738889,109950.0,109940.0,0.1364758]
[1761252118210,0.4749423,109950.0,109940.0,0.1364758]
[1761252119411,0.4749423,109950.0,109940.0,0.04554]
[1761252119610,0.4769423,109950.0,109940.0,0.04554]
[1761252120111,0.50938889,109950.0,109940.0,0.04554]
[1761252121212,0.4769423,109950.0,109940.0,0.04554]
[1761252121609,0.4769423,109950.0,109940.0,0.1364758]
[1761252122006,0.1552223,109950.0,109940.0,0.30046294]
[1761252122212,0.4769023,109950.0,109940.0,0.30046294]
[1761252123708,0.1552223,109950.0,109940.0,0.30046294]
[1761252123904,0.4767823,109950.0,109940.0,0.30046294]
[1761252125716,0.1552223,109950.0,109940.0,0.30046294]
[1761252125916,0.4767823,109950.0,109940.0,0.30046294]
[1761252127118,0.4767023,109950.0,109940.0,0.30046294]
[1761252127513,0.1552223,109950.0,109940.0,0.30046294]
[1761252127708,0.4766623,109950.0,109940.0,0.30046294]
[1761252129314,0.4766223,109950.0,109940.0,0.30046294]
[1761252129624,0.1552223,109950.0,109940.0,0.30046294]
[1761252129916,0.4766223,109950.0,109940.0,0.30046294]
[1761252130420,0.4766223,109950.0,109940.0,0.1364758]
[1761252131015,0.37225,109950.0,109940.0,0.1499158]
[1761252131213,0.06429,109950.0,109940.0,0.5107158]
[1761252131409,0.4765775,109950.0,109940.0,0.67470294]
[1761252131614,0.38565,109950.0,109940.0,0.66126294]
[1761252132824,0.05085,109950.0,109940.0,0.67470294]
[1761252133024,0.37221,109950.0,109940.0,0.67470294]
[1761252134628,0.05085,109950.0,109940.0,0.67470294]
[1761252134926,0.37213,109950.0,109940.0,0.67470294]
[1761252135120,0.05085,109950.0,109940.0,0.67470294]
[1761252135325,0.37213,109950.0,109940.0,0.67470294]
[1761252135828,0.05085,109950.0,109940.0,0.67470294]
[1761252136030,0.37209,109950.0,109940.0,0.67470294]
[1761252137329,0.37205,109950.0,109940.0,0.67470294]
[1761252138427,0.37205,109950.0,109940.0,0.5107158]
[1761252138629,0.37205,109950.0,109940.0,0.67470294]
[1761252138828,0.05085,109950.0,109940.0,0.67470294]
[1761252139027,0.37201,109950.0,109940.0,0.67470294]
[1761252140725,0.05085,109950.0,109940.0,0.67470294]
[1761252140925,0.37197,109950.0,109940.0,0.67470294]
[1761252141423,0.37193,109950.0,109940.0,0.67470294]
[1761252141829,0.4628575,109950.0,109940.0,0.67470294]
[1761252144730,0.38552,109950.0,109940.0,0.4972758]
[1761252144931,0.38552,109950.0,109940.0,0.66126294]
[1761252145230,0.4764475,109950.0,109940.0,0.66126294]
[1761252146525,0.4764475,109950.0,109940.0,0.40634]
[1761252146727,0.1478158,109940.0,109930.0,0.40603]
[1761252146928,0.1478241,109930.0,109920.0,0.41493103]
[1761252147224,0.4689041,109930.0,109920.0,0.41493103]
[1761252148129,0.4689041,109930.0,109920.0,0.50588333]
[1761252148521,0.4689041,109930.0,109920.0,0.66987047]
[1761252149231,0.4699041,109930.0,109920.0,0.66987047]
[1761252150132,0.4699041,109930.0,109920.0,0.57891817]
[1761252150530,0.4699041,109930.0,109920.0,0.41493103]
[1761252152934,0.8699041,109930.0,109920.0,0.3608]
[1761252153535,0.5488241,109930.0,109920.0,0.40603]
[1761252153837,0.4698241,109930.0,109920.0,0.66096944]
[1761252154022,0.4698241,109930.0,109920.0,0.20921714]
[1761252154621,0.4698241,109930.0,109920.0,0.04523]
[1761252154822,0.4698241,109930.0,109920.0,0.05448639]
[1761252155836,0.4698241,109930.0,109920.0,0.14543869]
[1761252156738,0.4698241,109930.0,109920.0,0.30942583]
[1761252156937,0.4698241,109930.0,109920.0,0.67022583]
[1761252160636,0.1488241,109930.0,109920.0,0.67022583]
[1761252160834,0.4697441,109930.0,109920.0,0.67022583]
[1761252161538,0.4697441,109930.0,109920.0,0.57927353]
[1761252162936,0.4697441,109930.0,109920.0,0.67022583]
[1761252163839,0.4696641,109930.0,109920.0,0.67022583]
[1761252165541,0.1488241,109930.0,109920.0,0.67022583]
[1761252165832,0.4696241,109930.0,109920.0,0.67022583]
[1761252166032,0.1488241,109930.0,109920.0,0.67022583]
[1761252166337,0.1360541,109930.0,109920.0,0.68315583]
[1761252166539,0.4568141,109930.0,109920.0,0.68315583]
[1761252168240,0.1360541,109930.0,109920.0,0.68315583]
[1761252168435,0.001,109930.0,109920.0,0.84714297]
[1761252168634,0.34398,109930.0,109920.0,0.84714297]
[1761252169341,0.02322,109930.0,109920.0,0.84714297]
[1761252169640,0.34398,109930.0,109920.0,0.84714297]
[1761252169944,0.34298,109930.0,109920.0,0.84814297]
[1761252170145,0.455814,109930.0,109920.0,0.84814297]
[1761252171144,0.455774,109930.0,109920.0,0.68415583]
[1761252171344,0.135054,109930.0,109920.0,0.68415583]
[1761252171540,0.36483,109930.0,109920.0,0.84814297]
[1761252171742,0.455774,109930.0,109920.0,0.84814297]
[1761252174663,0.455774,109930.0,109920.0,0.84790865]
[1761252175258,0.469734,109930.0,109920.0,0.50723869]
[1761252175456,0.469734,109930.0,109920.0,0.83497865]
[1761252176362,0.49406632,109930.0,109920.0,0.83497865]
[1761252176563,0.49406632,109930.0,109920.0,0.84789865]
[1761252176756,0.49406632,109930.0,109920.0,0.50723869]
[1761252177056,0.49506632,109930.0,109920.0,0.67110867]
[1761252177563,0.49506632,109930.0,109920.0,0.83397865]
[1761252180166,0.470734,109930.0,109920.0,0.83397865]
[1761252184362,0.63460398,109930.0,109920.0,0.67010867]
[1761252184568,0.470734,109930.0,109920.0,0.67010867]
[1761252185370,0.49506632,109930.0,109920.0,0.67010867]
[1761252185768,0.49506632,109930.0,109920.0,0.30930867]
[1761252185969,0.49506632,109930.0,109920.0,0.67010867]
[1761252186468,0.49506632,109930.0,109920.0,0.83397865]
[1761252188470,0.49506632,109930.0,109920.0,0.74302635]
[1761252188865,0.6589363,109930.0,109920.0,0.04376]
[1761252189064,0.6589363,109930.0,109920.0,0.20762998]
[1761252189564,0.6589363,109930.0,109920.0,0.21673429]
[1761252189970,0.6589363,109930.0,109920.0,0.20762998]
[1761252190268,0.69138289,109930.0,109920.0,0.20762998]
[1761252191771,0.69138289,109930.0,109920.0,0.16386998]
[1761252191967,0.1506923,109920.0,109910.0,0.57740535]
[1761252192268,0.17504459,109920.0,109910.0,0.66836595]
[1761252194174,0.17604459,109920.0,109910.0,0.66936595]
[1761252194776,0.17604459,109920.0,109910.0,0.66836595]
[1761252198382,0.1516923,109920.0,109910.0,0.66836595]
[1761252199378,0.1516923,109920.0,109910.0,0.50449597]
[1761252199680,0.1516923,109920.0,109910.0,0.66836595]
[1761252202779,0.1377323,109920.0,109910.0,0.68128595]
[1761252204479,0.1510723,109920.0,109910.0,0.68128595]
[1761252206189,0.1510723,109920.0,109910.0,0.51741597]
[1761252206388,0.1510723,109920.0,109910.0,0.68128595]
[1761252206786,0.1510723,109920.0,109910.0,0.32048595]
[1761252206986,0.1510723,109920.0,109910.0,0.68128595]
[1761252207189,0.4714723,109920.0,109910.0,0.68128595]
[1761252207484,0.49582459,109920.0,109910.0,0.68128595]
[1761252215894,0.17542459,109920.0,109910.0,0.68128595]
[1761252216100,0.49582459,109920.0,109910.0,0.68128595]
[1761252220597,0.17542459,109920.0,109910.0,0.68128595]
[1761252220796,0.17542459,109920.0,109910.0,0.66836595]
[1761252220998,0.49582459,109920.0,109910.0,0.66836595]
[1761252221299,0.52827118,109920.0,109910.0,0.66836595]
[1761252221798,0.20787118,109920.0,109910.0,0.68128595]
[1761252222697,0.52827118,109920.0,109910.0,0.68128595]
[1761252223495,0.20790035,109920.0,109910.0,0.68128595]
[1761252223699,0.11633376,109920.0,109910.0,0.84515593]
[1761252223900,0.43673376,109920.0,109910.0,0.84515593]
[1761252224500,0.11633376,109920.0,109910.0,0.84515593]
[1761252224701,0.43673376,109920.0,109910.0,0.84515593]
[1761252224900,0.11633376,109920.0,109910.0,0.84515593]
[1761252225200,0.43673376,109920.0,109910.0,0.84515593]
[1761252225502,0.11633376,109920.0,109910.0,0.84515593]
[1761252225988,0.11633376,109920.0,109910.0,0.68128595]
[1761252225989,0.48191376,109920.0,109910.0,0.68128595]
[1761252226193,0.51436035,109920.0,109910.0,0.68128595]
[1761252226894,0.16151376,109920.0,109910.0,0.68128595]
[1761252227103,0.51436035,109920.0,109910.0,0.68128595]
[1761252227303,0.48191376,109920.0,109910.0,0.68128595]
[1761252229702,0.16151376,109920.0,109910.0,0.68128595]
[1761252229906,0.48187376,109920.0,109910.0,0.68128595]
[1761252230302,0.48187376,109920.0,109910.0,0.84515593]
[1761252230806,0.16151376,109920.0,109910.0,0.84515593]
[1761252230995,0.11633376,109920.0,109910.0,0.87783598]
[1761252231306,0.13854376,109920.0,109910.0,0.87783598]
[1761252231605,0.34357,109920.0,109910.0,0.87783598]
[1761252231794,0.02321,109920.0,109910.0,0.87783598]
[1761252231990,0.34357,109920.0,109910.0,0.87783598]
[1761252232198,0.4345223,109920.0,109910.0,0.87783598]
[1761252232405,0.4574923,109920.0,109910.0,0.87783598]
[1761252232604,0.4574923,109920.0,109910.0,0.87883598]
[1761252233199,0.4564923,109920.0,109910.0,0.87883598]
[1761252233493,0.1361323,109920.0,109910.0,0.87883598]
[1761252234707,0.1361323,109920.0,109910.0,0.71499368]
[1761252236807,0.1131623,109920.0,109910.0,0.71499368]
[1761252237306,0.1131623,109920.0,109910.0,1.07579368]
[1761252238710,0.1343423,109920.0,109910.0,1.07579368]
[1761252241804,0.1131623,109920.0,109910.0,1.07579368]
[1761252243914,0.0909523,109920.0,109910.0,1.07579368]
[1761252244213,0.1132723,109920.0,109910.0,1.07579368]
[1761252246015,0.1344523,109920.0,109910.0,1.07579368]
[1761252246307,0.1132723,109920.0,109910.0,1.07579368]
[1761252247209,0.1344523,109920.0,109910.0,1.07579368]
[1761252247812,0.0909523,109920.0,109910.0,1.07579368]
[1761252248014,0.19127205,109930.0,109920.0,0.0555]
[1761252248208,0.19127205,109930.0,109920.0,0.58019766]
[1761252248714,0.51163205,109930.0,109920.0,0.58019766]
[1761252249413,0.51263205,109930.0,109920.0,0.67114996]
[1761252249613,0.15982546,109930.0,109920.0,0.67114996]
[1761252249816,0.48018546,109930.0,109920.0,0.67114996]
[1761252250309,0.51263205,109930.0,109920.0,0.67114996]
[1761252251516,0.19227205,109930.0,109920.0,0.67114996]
[1761252251719,0.51259205,109930.0,109920.0,0.67114996]
[1761252252019,0.001,109930.0,109920.0,0.86772767]
[1761252252520,0.87159578,109950.0,109940.0,0.1126058]
[1761252252521,0.20968735,109950.0,109940.0,0.1126058]
[1761252252817,0.20968735,109950.0,109940.0,0.67128346]
[1761252253209,0.17724076,109950.0,109940.0,0.67128346]
[1761252253715,0.14243076,109950.0,109940.0,0.67128346]
[1761252253913,0.16361076,109950.0,109940.0,0.67128346]
[1761252254415,0.16561076,109950.0,109940.0,0.67128346]
[1761252255220,0.1412293,109950.0,109940.0,0.67128346]
[1761252257312,0.1412275,109950.0,109940.0,0.67128346]
[1761252258821,0.1412275,109950.0,109940.0,1.03208346]
[1761252270227,0.1412275,109950.0,109940.0,0.67128346]
[1761252281137,0.1655504,109950.0,109940.0,0.67128346]
[1761252282838,0.1655504,109950.0,109940.0,0.70396351]
[1761252287445,0.1645504,109950.0,109940.0,0.70396351]
[1761252294644,0.1645504,109950.0,109940.0,0.54006585]
[1761252294851,0.1645504,109950.0,109940.0,0.86770813]
[1761252301047,0.1645504,109950.0,109940.0,0.85477813]
[1761252301250,0.73432813,109950.0,109940.0,0.02167]
[1761252301456,0.73432813,109950.0,109930.0,0.71380005]
[1761252301457,0.1483654,109940.0,109930.0,0.88983114]
[1761252301649,0.39341604,109940.0,109930.0,0.56951114]
[1761252301950,0.39341604,109940.0,109930.0,0.40569]
[1761252302152,0.34474615,109940.0,109930.0,0.56951114]
[1761252302547,0.34474615,109940.0,109930.0,0.57051114]
[1761252302951,0.34474615,109940.0,109930.0,0.40669]
[1761252303149,0.36913895,109940.0,109930.0,0.40769]
[1761252303540,0.34474615,109940.0,109930.0,0.40769]
[1761252303953,0.39341604,109940.0,109930.0,0.40769]
[1761252304151,0.34474615,109940.0,109930.0,0.40669]
[1761252304347,0.1483737,109930.0,109920.0,0.04489]
[1761252304547,0.36914,109930.0,109920.0,0.04489]
[1761252304753,0.34475445,109930.0,109920.0,0.04489]
[1761252304956,0.18093331,109930.0,109920.0,0.20871114]
[1761252305158,0.68924799,109930.0,109920.0,0.20871114]
[1761252305342,0.68924799,109930.0,109920.0,0.04489]
[1761252305549,0.52542685,109930.0,109920.0,0.56951114]
[1761252305954,0.02437354,109930.0,109920.0,0.83720428]
[1761252306158,0.002,109930.0,109920.0,1.00102542]
[1761252306461,0.003,109930.0,109920.0,0.86988433]
[1761252307658,0.1132779,109940.0,109930.0,0.1487637]
[1761252307861,0.1132779,109940.0,109930.0,0.99354484]
[1761252309645,0.1142779,109940.0,109930.0,0.99354484]
[1761252309846,0.0919379,109940.0,109930.0,1.15736598]
[1761252311057,0.0909379,109940.0,109930.0,1.15936598]
[1761252311360,0.1356579,109940.0,109930.0,0.99554484]
[1761252312260,0.1356579,109940.0,109930.0,0.99454484]
[1761252312462,0.1356579,109940.0,109930.0,0.99554484]
[1761252314253,0.1356579,109940.0,109930.0,0.63474484]
[1761252314458,0.1356579,109940.0,109930.0,1.35634484]
[1761252314756,0.1356579,109940.0,109930.0,1.35534484]
[1761252314956,0.1356579,109940.0,109930.0,1.35634484]
[1761252315750,0.1356579,109940.0,109930.0,1.35534484]
[1761252315954,0.1356579,109940.0,109930.0,1.35634484]
[1761252316357,0.1366579,109940.0,109930.0,1.35534484]
[1761252316557,0.1493679,109940.0,109930.0,1.35534484]
[1761252317058,0.1493679,109940.0,109930.0,1.34241484]
[1761252317258,0.1493679,109940.0,109930.0,1.34141484]
[1761252317758,0.33756258,109940.0,109930.0,1.34141484]
[1761252317954,0.17374144,109940.0,109930.0,1.25047114]
[1761252318358,0.37012219,109940.0,109930.0,1.25047114]
[1761252318760,0.77012219,109940.0,109930.0,1.25047114]
[1761252318954,0.74574865,109940.0,109930.0,1.25047114]
[1761252319960,0.0253783,109940.0,109930.0,1.51815598]
[1761252320169,0.001,109940.0,109930.0,1.51815598]
[1761252320759,0.001,109940.0,109930.0,1.55083603]
[1761252321359,0.001,109940.0,109930.0,1.55183603]
[1761252321958,0.1404535,109950.0,109940.0,0.1461054]
[1761252322254,0.1404535,109950.0,109940.0,0.83454768]
[1761252323166,0.1414535,109950.0,109940.0,0.83454768]
[1761252333275,0.1546935,109950.0,109940.0,0.4966254]
[1761252333460,0.1546935,109950.0,109940.0,0.82426768]
[1761252333872,0.1546935,109950.0,109940.0,0.66044654]
[1761252334572,0.1546935,109950.0,109940.0,0.82426768]
[1761252335072,0.17908466,109950.0,109940.0,0.82426768]
[1761252336075,0.3429058,109950.0,109940.0,0.66044654]
[1761252337478,0.37546541,109950.0,109940.0,0.72577]
[1761252337676,0.35107425,109950.0,109940.0,0.72577]
[1761252337878,0.39974414,109950.0,109940.0,0.72577]
[1761252338777,0.1491354,109940.0,109930.0,0.72436]
[1761252339073,0.36992664,109940.0,109930.0,0.72436]
[1761252339872,0.36992664,109940.0,109930.0,0.72536]
[1761252340371,0.36992664,109940.0,109930.0,0.40528]
[1761252340574,0.36992664,109940.0,109930.0,0.72636]
[1761252340774,0.53374778,109940.0,109930.0,0.72636]
[1761252341678,0.37192664,109940.0,109930.0,0.72536]
[1761252342379,0.37192664,109940.0,109930.0,0.72436]
[1761252343075,0.37192664,109940.0,109930.0,0.40428]
[1761252343477,0.53574778,109940.0,109930.0,0.40428]
[1761252343881,0.91133729,109940.0,109930.0,0.40428]
[1761252344980,1.23141729,109940.0,109930.0,0.3827]
[1761252345174,1.25580849,109940.0,109930.0,0.3608]
[1761252345378,1.23141729,109940.0,109930.0,0.3608]
[1761252345683,1.23141729,109940.0,109930.0,0.40428]
[1761252346281,1.23141729,109940.0,109930.0,0.3827]
[1761252346478,1.64088718,109940.0,109930.0,0.0219]
[1761252346982,0.1491437,109930.0,109920.0,0.88818114]
[1761252347288,0.33735206,109930.0,109920.0,0.88818114]
[1761252347585,0.36991167,109930.0,109920.0,0.40428]
[1761252347882,0.76991167,109930.0,109920.0,0.40428]
[1761252348277,0.77091167,109930.0,109920.0,0.40428]
[1761252348476,0.77091167,109930.0,109920.0,0.04348]
[1761252349783,0.77291167,109930.0,109920.0,0.04348]
[1761252350080,0.77391167,109930.0,109920.0,0.04348]
[1761252350281,0.79819434,109930.0,109920.0,0.04348]
[1761252350475,0.80219434,109930.0,109920.0,0.04348]
[1761252351085,0.75352445,109930.0,109920.0,0.04348]
[1761252351886,0.75152445,109930.0,109920.0,0.40428]
[1761252352185,0.77589434,109930.0,109920.0,0.04348]
[1761252352485,0.77589434,109930.0,109920.0,0.20730114]
[1761252352685,0.77789434,109930.0,109920.0,0.20730114]